bitfinex/quotes_BTCUSD_20240602
["timestamp","ask_amount","ask_price","bid_price","bid_amount"]
[1717324778488,0.24549194,67510.0,67509.0,0.32149021]
[1717324778690,0.24549194,67510.0,67509.0,0.15777791]
[1717324779073,0.24549194,67510.0,67509.0,0.16477791]
[1717324779495,0.24549194,67510.0,67509.0,0.14577791]
[1717324779732,0.24549194,67510.0,67509.0,0.15277791]
[1717324779954,0.24549194,67510.0,67509.0,0.16077791]
[1717324780168,0.24549194,67510.0,67509.0,0.15277791]
[1717324780646,0.24549194,67510.0,67509.0,0.15777791]
[1717324781108,0.24549194,67510.0,67509.0,0.15077791]
[1717324782015,0.24549194,67510.0,67509.0,0.15477791]
[1717324783368,0.25230217,67510.0,67509.0,0.15477791]
[1717324785247,0.25230217,67510.0,67509.0,0.34477791]
[1717324787417,0.24828023,67510.0,67509.0,0.34477791]
[1717324788283,0.24828023,67510.0,67509.0,0.49849597]
[1717324792658,0.24828023,67510.0,67509.0,0.49817421]
[1717324800576,0.24828023,67510.0,67509.0,1.49817421]
[1717324801144,0.09248023,67510.0,67509.0,1.49817421]
[1717324806055,0.09650217,67510.0,67509.0,1.49817421]
[1717324810081,0.09650217,67510.0,67509.0,1.49817232]
[1717324810490,0.08969194,67510.0,67509.0,1.49817232]
[1717324814666,0.08969194,67510.0,67509.0,1.35271617]
[1717324814867,0.33099194,67510.0,67509.0,1.35271617]
[1717324815266,0.33779303,67510.0,67509.0,1.35271617]
[1717324815471,0.48591903,67510.0,67509.0,1.16271617]
[1717324815683,0.48591903,67510.0,67509.0,1.009]
[1717324815684,0.50881551,67510.0,67509.0,1.009]
[1717324819366,0.50881551,67510.0,67509.0,1.0]
[1717324819741,0.50201442,67510.0,67509.0,1.002]
[1717324820143,0.50881551,67510.0,67509.0,1.002]
[1717324820796,0.50881551,67510.0,67509.0,1.006]
[1717324820977,0.50881551,67510.0,67509.0,1.004]
[1717324821179,0.50881551,67510.0,67509.0,1.0]
[1717324822391,0.50201442,67510.0,67509.0,1.0]
[1717324822599,0.60874659,67510.0,67509.0,1.0]
[1717324823055,0.65309271,67510.0,67509.0,1.0]
[1717324823287,0.60874659,67510.0,67509.0,1.0]
[1717324830502,0.90499859,67510.0,67509.0,1.0]
[1717324845098,0.96294499,67510.0,67509.0,1.0]
[1717324848020,0.66669299,67510.0,67509.0,1.0]
[1717324850278,0.58579299,67510.0,67509.0,1.0]
[1717324851912,0.42539299,67510.0,67509.0,1.0]
[1717324852334,0.32137105,67510.0,67509.0,1.2425]
[1717324852566,0.26342465,67510.0,67509.0,1.2425]
[1717324853392,0.26342465,67510.0,67509.0,1.3962223]
[1717324853818,0.233796,67510.0,67509.0,1.3962223]
[1717324854225,0.08567,67510.0,67509.0,1.3962223]
[1717324854726,0.09251641,67510.0,67509.0,1.3962223]
[1717324855151,0.09251641,67510.0,67509.0,1.2425]
[1717324855521,0.09653835,67510.0,67509.0,1.2425]
[1717324856143,0.09653835,67510.0,67509.0,1.39622039]
[1717324856382,0.09653835,67510.0,67509.0,1.2425]
[1717324856553,0.08969194,67510.0,67509.0,1.2425]
[1717324856764,0.08969194,67510.0,67509.0,1.39622001]
[1717324856909,0.08969194,67510.0,67509.0,1.2425]
[1717324859769,0.08567,67510.0,67509.0,1.2425]
[1717324860380,0.08969194,67510.0,67509.0,1.2425]
[1717324860790,0.08567,67510.0,67509.0,1.2425]
[1717324862433,0.09252437,67510.0,67509.0,1.2425]
[1717324867046,0.09654631,67510.0,67509.0,1.2425]
[1717324867885,0.09252437,67510.0,67509.0,1.2425]
[1717324870015,0.09654631,67510.0,67509.0,1.2425]
[1717324871379,0.09252437,67510.0,67509.0,1.2425]
[1717324871581,0.09654631,67510.0,67509.0,1.2425]
[1717324872813,0.09654631,67510.0,67509.0,1.38827791]
[1717324872814,0.00685437,67510.0,67509.0,1.38827791]
[1717324873016,0.00685437,67510.0,67509.0,1.54199574]
[1717324873192,0.08567,67511.0,67510.0,0.2467]
[1717324873372,0.08567,67513.0,67511.0,0.0814]
[1717324873571,0.08567,67513.0,67511.0,0.2714]
[1717324873770,0.00402194,67516.0,67511.0,0.2714]
[1717324873771,0.09253928,67512.0,67511.0,0.2714]
[1717324874019,0.09253928,67512.0,67511.0,0.42511201]
[1717324874226,0.08567,67512.0,67511.0,0.42511201]
[1717324875532,0.08969194,67512.0,67511.0,0.42511201]
[1717324875946,0.08567,67512.0,67511.0,0.42511201]
[1717324877071,0.09253932,67512.0,67511.0,0.42511201]
[1717324877466,0.09656126,67512.0,67511.0,0.42511201]
[1717324877689,0.09253932,67512.0,67511.0,0.42511201]
[1717324884935,0.00924873,67518.0,67511.0,0.48948992]
[1717324885158,0.00924873,67518.0,67513.0,0.377118]
[1717324885391,0.00924873,67518.0,67511.0,0.19]
[1717324885392,0.00687848,67517.0,67515.0,0.387214]
[1717324885610,0.00687848,67517.0,67516.0,0.53858992]
[1717324886618,0.00687848,67517.0,67516.0,0.68670292]
[1717324887043,0.00687848,67517.0,67516.0,0.68770292]
[1717324888253,0.00687848,67517.0,67516.0,0.68870292]
[1717324891523,0.00687848,67517.0,67516.0,0.68867156]
[1717324897494,0.00687848,67517.0,67516.0,0.77755156]
[1717324901699,0.00687848,67517.0,67516.0,0.79511088]
[1717324902070,0.00687848,67517.0,67516.0,0.64143023]
[1717324902296,0.00687848,67517.0,67516.0,0.79510163]
[1717324904041,0.00687848,67517.0,67516.0,0.79310163]
[1717324904387,0.00687848,67517.0,67516.0,0.81510163]
[1717324908006,0.00687848,67517.0,67516.0,0.87437863]
[1717324914136,0.00687848,67517.0,67516.0,0.89660728]
[1717324915568,0.00687848,67517.0,67516.0,0.87437863]
[1717324917610,0.00687848,67517.0,67516.0,0.89661117]
[1717324917803,0.00687848,67517.0,67516.0,0.87437863]
[1717324919010,0.00687848,67517.0,67516.0,0.89661117]
[1717324921512,0.00687848,67517.0,67516.0,0.73431117]
[1717324922777,0.00687848,67517.0,67516.0,0.71207863]
[1717324922978,0.00687848,67517.0,67516.0,0.73431117]
[1717324923533,0.00687848,67517.0,67516.0,0.71207863]
[1717324924152,0.00687848,67517.0,67516.0,0.73431117]
[1717324924904,0.00687848,67517.0,67516.0,0.89921117]
[1717324925935,0.00687848,67517.0,67516.0,1.2712714]
[1717324927123,0.00687848,67517.0,67516.0,1.53432486]
[1717324928196,0.00687848,67517.0,67516.0,1.60076402]
[1717324928400,0.00687848,67517.0,67516.0,1.92904195]
[1717324928700,0.00687848,67517.0,67516.0,2.14528882]
[1717324929158,0.00687848,67517.0,67516.0,2.07884966]
[1717324930192,0.00687848,67517.0,67516.0,1.95118834]
[1717324930337,0.00687848,67517.0,67516.0,1.86260279]
[1717324930910,0.00687848,67517.0,67516.0,1.95142091]
[1717324931115,0.00687848,67517.0,67516.0,1.86260279]
[1717324931666,0.00687848,67517.0,67516.0,1.97333472]
[1717324936909,0.00687848,67517.0,67516.0,1.86260279]
[1717324937540,0.00687848,67517.0,67516.0,1.97369841]
[1717324938139,0.00687848,67517.0,67516.0,1.86260279]
[1717324942224,0.00687848,67517.0,67516.0,1.69770279]
[1717324942421,0.00687848,67517.0,67516.0,1.71993601]
[1717324942618,0.00687848,67517.0,67516.0,1.52371117]
[1717324942820,0.00687848,67517.0,67516.0,1.44691117]
[1717324943020,0.00687848,67517.0,67516.0,1.33578978]
[1717324943286,0.00687848,67517.0,67516.0,1.31355656]
[1717324944433,0.00687848,67517.0,67516.0,1.44691117]
[1717324945627,0.00687848,67517.0,67516.0,1.31355656]
[1717324945813,0.00687848,67517.0,67516.0,1.62090627]
[1717324948601,0.00687848,67517.0,67516.0,1.83715314]
[1717324948813,0.00687848,67517.0,67516.0,1.62090627]
[1717324949018,0.00687848,67517.0,67516.0,1.83715314]
[1717324949216,0.00687848,67517.0,67516.0,1.62090627]
[1717324949421,0.00687848,67517.0,67516.0,1.83715314]
[1717324949655,0.00687848,67517.0,67516.0,1.62090627]
[1717324949859,0.00687848,67517.0,67516.0,1.83715314]
[1717324950064,0.00687848,67517.0,67516.0,1.62090627]
[1717324950269,0.00687848,67517.0,67516.0,1.91315314]
[1717324950472,0.00687848,67517.0,67516.0,2.46686809]
[1717324950683,0.00687848,67517.0,67516.0,2.4939686]
[1717324951083,0.00687848,67517.0,67516.0,2.62730987]
[1717324951290,0.00687848,67517.0,67516.0,2.4939686]
[1717324951499,0.00687848,67517.0,67516.0,2.61730987]
[1717324951700,0.00687848,67517.0,67516.0,2.64230987]
[1717324951901,0.00687848,67517.0,67516.0,2.67930987]
[1717324952505,0.00687848,67517.0,67516.0,2.64230987]
[1717324953021,0.00687848,67517.0,67516.0,2.67930987]
[1717324954102,0.00687848,67517.0,67516.0,2.5459686]
[1717324954449,0.00687848,67517.0,67516.0,2.4459686]
[1717324956138,0.00687848,67517.0,67516.0,3.4459686]
[1717324956520,0.00687848,67517.0,67516.0,3.5459686]
[1717324958302,0.00687848,67517.0,67516.0,3.5227963]
[1717324959535,0.00687848,67517.0,67516.0,3.6227963]
[1717324961810,0.00687848,67517.0,67516.0,3.6371263]
[1717324963400,0.00687848,67517.0,67516.0,3.63680545]
[1717324963815,0.00687848,67517.0,67516.0,4.08893145]
[1717324964649,0.00687848,67517.0,67516.0,4.22227272]
[1717324965743,0.00687848,67517.0,67516.0,4.14827272]
[1717324966126,0.00687848,67517.0,67516.0,4.22227272]
[1717324967219,0.00687848,67517.0,67516.0,4.08893145]
[1717324967663,0.00687848,67517.0,67516.0,4.22227272]
[1717324969584,0.00687848,67517.0,67516.0,4.12227272]
[1717324969825,0.00687848,67517.0,67516.0,4.08893145]
[1717324970604,0.00687848,67517.0,67516.0,3.93686769]
[1717324970826,0.00687848,67517.0,67516.0,4.11661052]
[1717324972232,0.00687848,67517.0,67516.0,4.01661052]
[1717324972636,0.00687848,67517.0,67516.0,4.11661052]
[1717324972879,0.00687848,67517.0,67516.0,4.01661052]
[1717324973839,0.00687848,67517.0,67516.0,3.74507495]
[1717324974031,0.00687848,67517.0,67516.0,4.01628345]
[1717324974236,0.00687848,67517.0,67516.0,4.11628345]
[1717324974439,0.00687848,67517.0,67516.0,4.01628345]
[1717324979015,0.00687848,67517.0,67516.0,4.0273985]
[1717324979565,0.00687848,67517.0,67516.0,4.14943817]
[1717324979982,0.00687848,67517.0,67516.0,4.24206105]
[1717324980642,0.00687848,67517.0,67516.0,4.34206105]
[1717324980839,0.00687848,67517.0,67516.0,4.24206105]
[1717324981420,0.00687848,67517.0,67516.0,4.08046105]
[1717324982601,0.00687848,67517.0,67516.0,4.18046105]
[1717324985164,0.00687848,67517.0,67516.0,4.33186105]
[1717324985364,0.00687848,67517.0,67516.0,4.19870633]
[1717324985954,0.00687848,67517.0,67516.0,4.33185727]
[1717324986204,0.00687848,67517.0,67516.0,4.19870633]
[1717324986401,0.00687848,67517.0,67516.0,4.3318588]
[1717324986554,0.00687848,67517.0,67516.0,4.4318588]
[1717324986756,0.00740455,67518.0,67517.0,1.333762]
[1717324986961,0.00740455,67518.0,67517.0,2.79346992]
[1717324987205,0.00740455,67518.0,67517.0,3.20897663]
[1717324987619,0.00740455,67518.0,67517.0,2.79346992]
[1717324987906,0.00740455,67518.0,67517.0,3.66994467]
[1717324988186,0.00740455,67518.0,67517.0,3.74394467]
[1717324988394,2.3018007,67520.0,67519.0,1.615492]
[1717324988543,2.29587777,67520.0,67519.0,3.29461973]
[1717324989172,2.29587777,67520.0,67519.0,3.29452054]
[1717324989840,2.29587777,67520.0,67519.0,3.19452054]
[1717324990156,2.29587777,67520.0,67519.0,3.49096073]
[1717324990577,2.28500568,67520.0,67519.0,3.49096073]
[1717324990750,2.28500568,67520.0,67519.0,3.29452054]
[1717324991295,2.28500568,67520.0,67519.0,3.33152054]
[1717324991721,2.28500568,67520.0,67519.0,3.36852054]
[1717324992208,2.27720259,67520.0,67519.0,3.36852054]
[1717324997269,2.27720259,67520.0,67519.0,3.36889284]
[1717324997874,2.27720259,67520.0,67519.0,3.21749284]
[1717324998387,2.27720259,67520.0,67519.0,2.71558084]
[1717324998586,2.52220259,67520.0,67519.0,2.63407032]
[1717324998789,2.52220259,67520.0,67519.0,2.75277524]
[1717324999160,2.52220259,67520.0,67519.0,2.76710524]
[1717324999568,2.44020259,67520.0,67519.0,2.73010524]
[1717324999720,2.52220259,67520.0,67519.0,2.75310524]
[1717325000538,2.52220259,67520.0,67519.0,1.83230843]
[1717325000745,2.52220259,67520.0,67519.0,2.75380938]
[1717325000948,2.52220259,67520.0,67519.0,2.71680938]
[1717325001151,2.52220259,67520.0,67519.0,2.75380938]
[1717325001356,2.52220259,67520.0,67519.0,2.79080938]
[1717325001560,2.52220259,67520.0,67519.0,2.71680938]
[1717325001942,2.52220259,67520.0,67519.0,2.75380938]
[1717325002348,2.52220259,67520.0,67519.0,3.75380938]
[1717325002550,2.52220259,67520.0,67519.0,3.77969542]
[1717325002977,2.52220259,67520.0,67519.0,3.6466393]
[1717325004854,2.44020259,67520.0,67519.0,3.6466393]
[1717325005041,2.44020259,67520.0,67519.0,3.79080938]
[1717325005446,2.44020259,67520.0,67519.0,3.6466393]
[1717325006089,2.44020259,67520.0,67519.0,3.65775326]
[1717325006266,2.44020259,67520.0,67519.0,3.89080938]
[1717325006490,2.44020259,67520.0,67519.0,3.87969542]
[1717325007347,2.44020259,67520.0,67519.0,3.89080954]
[1717325008177,2.44020259,67520.0,67519.0,3.87969542]
[1717325008387,2.44020259,67520.0,67519.0,3.97231239]
[1717325008594,2.44020259,67520.0,67519.0,3.87969542]
[1717325008718,2.44020259,67520.0,67519.0,3.77969542]
[1717325010236,2.44020259,67520.0,67519.0,3.87231315]
[1717325013283,2.44020259,67520.0,67519.0,3.43200651]
[1717325013516,2.44020259,67520.0,67519.0,3.97240657]
[1717325014299,2.44020259,67520.0,67519.0,3.83929307]
[1717325015578,2.44020259,67520.0,67519.0,3.97241415]
[1717325015790,2.51040259,67520.0,67519.0,3.14321107]
[1717325015991,2.51040259,67520.0,67519.0,2.83193096]
[1717325017572,2.51040259,67520.0,67519.0,2.94287385]
[1717325018120,2.51040259,67520.0,67519.0,2.90587385]
[1717325018334,2.51040259,67520.0,67519.0,2.86887385]
[1717325018532,2.51040259,67520.0,67519.0,2.94287385]
[1717325018737,2.51040259,67520.0,67519.0,2.50372166]
[1717325018935,2.51040259,67520.0,67519.0,2.94290671]
[1717325019566,2.51040259,67520.0,67519.0,2.94290432]
[1717325019767,2.51040259,67520.0,67519.0,2.83196576]
[1717325019993,2.51040259,67520.0,67519.0,2.9429042]
[1717325022546,2.51040259,67520.0,67519.0,2.6466922]
[1717325030597,2.51040259,67520.0,67519.0,2.6236922]
[1717325034733,2.51040259,67520.0,67519.0,2.51275376]
[1717325034914,2.42960259,67520.0,67519.0,2.6236922]
[1717325035316,2.42960259,67520.0,67519.0,2.51275376]
[1717325037998,2.27720259,67520.0,67519.0,3.00019576]
[1717325038506,2.27720259,67520.0,67519.0,3.21885814]
[1717325040979,2.27720259,67520.0,67519.0,3.00019576]
[1717325041179,1.42129929,67520.0,67519.0,4.09682214]
[1717325041337,1.42129929,67520.0,67519.0,4.36371205]
[1717325041338,1.33194647,67520.0,67519.0,4.36371205]
[1717325041513,1.33194647,67520.0,67519.0,4.37804205]
[1717325041724,1.33194647,67520.0,67519.0,4.79039403]
[1717325041936,1.33075892,67520.0,67519.0,4.79039403]
[1717325042133,1.33075892,67520.0,67519.0,4.75339403]
[1717325043278,1.33075892,67520.0,67519.0,4.34104205]
[1717325043516,1.33075892,67520.0,67519.0,4.71639403]
[1717325043721,1.33075892,67520.0,67519.0,4.75339403]
[1717325044097,1.33075892,67520.0,67519.0,4.30404205]
[1717325044495,1.33075892,67520.0,67519.0,4.37804205]
[1717325044738,1.33075892,67520.0,67519.0,4.34104205]
[1717325044942,1.33075892,67520.0,67519.0,4.30404205]
[1717325045239,1.33075892,67520.0,67519.0,4.34104205]
[1717325046144,1.33075892,67520.0,67519.0,4.37804205]
[1717325046285,1.33075892,67520.0,67519.0,4.34104205]
[1717325046890,1.33075892,67520.0,67519.0,4.37804205]
[1717325047591,1.33075892,67520.0,67519.0,4.34104205]
[1717325047903,1.33075892,67520.0,67519.0,4.37804205]
[1717325050893,1.33075892,67520.0,67519.0,4.35504205]
[1717325051479,1.32637466,67520.0,67519.0,4.35504205]
[1717325054815,1.32637466,67520.0,67519.0,4.04775549]
[1717325055032,1.32637466,67520.0,67519.0,4.35501078]
[1717325060478,1.29738466,67520.0,67519.0,4.18941078]
[1717325060654,1.29738466,67520.0,67519.0,4.36761078]
[1717325061736,1.29738466,67520.0,67519.0,4.56418672]
[1717325062075,1.29738466,67520.0,67519.0,4.36761078]
[1717325062477,0.1531,67531.0,67519.0,4.36761078]
[1717325062478,0.15712194,67555.0,67533.0,1.639487]
[1717325062709,0.162527,67543.0,67534.0,0.91107]
[1717325062882,0.162527,67543.0,67541.0,1.117024]
[1717325063084,0.162527,67543.0,67541.0,2.12876049]
[1717325063387,0.162527,67543.0,67541.0,2.21737366]
[1717325063566,0.162527,67543.0,67541.0,2.12876049]
[1717325063981,0.162527,67543.0,67541.0,2.21737373]
[1717325064524,0.162527,67543.0,67541.0,2.23221201]
[1717325064721,0.162527,67543.0,67541.0,2.23221244]
[1717325064927,0.162527,67543.0,67541.0,1.58238305]
[1717325065126,0.240027,67542.0,67541.0,1.59671305]
[1717325065379,0.240027,67542.0,67541.0,1.5302611]
[1717325065684,0.240027,67542.0,67541.0,1.56023157]
[1717325065905,0.240027,67542.0,67541.0,1.55978048]
[1717325066094,0.240027,67542.0,67541.0,1.59678048]
[1717325066298,0.240027,67542.0,67541.0,1.57456157]
[1717325066504,0.240027,67542.0,67541.0,1.5302611]
[1717325066728,0.240027,67542.0,67541.0,1.63371305]
[1717325066884,0.240027,67542.0,67541.0,1.59671305]
[1717325067085,0.240027,67542.0,67541.0,1.61155661]
[1717325067612,0.240027,67542.0,67541.0,1.5672611]
[1717325069607,0.240027,67542.0,67541.0,1.87447132]
[1717325070415,0.162527,67542.0,67541.0,1.87447132]
[1717325070616,0.162527,67542.0,67541.0,1.61154562]
[1717325070817,0.162527,67542.0,67541.0,1.91875634]
[1717325071166,0.162527,67542.0,67541.0,1.87447182]
[1717325071376,0.162527,67542.0,67541.0,1.91875534]
[1717325071575,0.162527,67542.0,67541.0,1.94736077]
[1717325072013,0.162527,67542.0,67541.0,2.33770014]
[1717325073134,0.162527,67542.0,67541.0,2.27124819]
[1717325073334,0.162527,67542.0,67541.0,2.33766224]
[1717325073533,0.162527,67542.0,67541.0,2.35560402]
[1717325073974,0.162527,67542.0,67541.0,2.28919]
[1717325074623,0.162527,67542.0,67541.0,2.35560255]
[1717325074957,0.162527,67542.0,67541.0,2.45560255]
[1717325076749,0.009427,67542.0,67541.0,2.45560255]
[1717325076950,0.009427,67542.0,67541.0,3.41484955]
[1717325077541,0.009427,67542.0,67541.0,4.136053]
[1717325078044,0.009427,67542.0,67541.0,4.12466624]
[1717325078223,0.009427,67542.0,67541.0,4.22466624]
[1717325078983,0.009427,67542.0,67541.0,4.07106624]
[1717325080149,0.009427,67542.0,67541.0,3.99817729]
[1717325080354,0.009427,67542.0,67541.0,3.90956405]
[1717325081366,0.009427,67542.0,67541.0,3.80956405]
[1717325081771,0.009427,67542.0,67541.0,3.90956405]
[1717325083428,0.009427,67542.0,67541.0,4.02035383]
[1717325083644,0.009427,67542.0,67541.0,3.98335383]
[1717325085238,0.009427,67542.0,67541.0,3.94635383]
[1717325085445,0.009427,67542.0,67541.0,4.16501621]
[1717325085658,0.009427,67542.0,67541.0,4.10201621]
[1717325085870,0.009427,67542.0,67541.0,3.88335383]
[1717325086639,0.009427,67542.0,67541.0,4.16522643]
[1717325087191,0.009427,67542.0,67541.0,4.02822643]
[1717325087358,0.009427,67542.0,67541.0,3.99122643]
[1717325087576,0.009427,67542.0,67541.0,4.02822643]
[1717325088405,0.009427,67542.0,67541.0,3.99122643]
[1717325088811,0.009427,67542.0,67541.0,4.02822643]
[1717325089028,0.009427,67542.0,67541.0,4.09122643]
[1717325089624,0.009427,67542.0,67541.0,4.12822643]
[1717325089758,0.009427,67542.0,67541.0,3.76911043]
[1717325089960,0.009427,67542.0,67541.0,3.65011043]
[1717325090182,0.009427,67542.0,67541.0,3.57611043]
[1717325090183,0.174227,67542.0,67541.0,3.57611043]
[1717325090389,0.174227,67542.0,67541.0,3.61311043]
[1717325091025,0.174227,67542.0,67541.0,3.65011043]
[1717325092258,0.174227,67542.0,67541.0,3.6612184]
[1717325094179,0.174227,67542.0,67541.0,3.688248]
[1717325095855,0.009427,67549.0,67548.0,1.486227]
[1717325096067,0.009427,67549.0,67548.0,2.16967482]
[1717325096317,0.009427,67549.0,67548.0,2.45480551]
[1717325096522,0.009427,67549.0,67548.0,2.23614313]
[1717325096668,0.009427,67549.0,67548.0,2.45480551]
[1717325096875,0.009427,67549.0,67548.0,2.27314313]
[1717325097236,0.009427,67549.0,67548.0,2.52880551]
[1717325098004,0.009427,67549.0,67548.0,2.82489051]
[1717325098203,0.009427,67549.0,67548.0,3.14556615]
[1717325098433,0.009427,67549.0,67548.0,2.78301284]
[1717325099027,0.009427,67549.0,67548.0,2.87163725]
[1717325099226,0.009427,67549.0,67548.0,2.61597487]
[1717325099430,0.009427,67549.0,67548.0,2.94169987]
[1717325099596,0.009427,67549.0,67548.0,3.10873784]
[1717325100436,0.009427,67549.0,67548.0,3.07173784]
[1717325100630,0.009427,67549.0,67548.0,3.03473784]
[1717325100832,0.009427,67549.0,67548.0,3.07173784]
[1717325102255,0.009427,67549.0,67548.0,3.14551835]
[1717325102454,0.009427,67549.0,67548.0,3.07173784]
[1717325102678,0.239127,67549.0,67548.0,2.81265284]
[1717325102869,0.239127,67549.0,67548.0,2.77565284]
[1717325103327,0.239127,67549.0,67548.0,2.88643335]
[1717325103648,0.239127,67549.0,67548.0,2.92343335]
[1717325105484,0.239127,67549.0,67548.0,2.81265284]
[1717325105688,0.239127,67549.0,67548.0,2.92353131]
[1717325106444,0.239127,67549.0,67548.0,2.81265284]
[1717325106983,0.239127,67549.0,67548.0,2.79832284]
[1717325108182,0.239127,67549.0,67548.0,2.8162058]
[1717325110770,0.24314894,67549.0,67548.0,2.8162058]
[1717325111185,0.239127,67549.0,67548.0,2.8162058]
[1717325111621,0.24314894,67549.0,67548.0,2.8162058]
[1717325111833,0.239127,67549.0,67548.0,2.8162058]
[1717325112737,0.24314894,67549.0,67548.0,2.8162058]
[1717325113271,0.239127,67549.0,67548.0,2.8162058]
[1717325114210,0.239127,67549.0,67548.0,2.59778206]
[1717325114402,0.239127,67549.0,67548.0,2.50899508]
[1717325114580,0.239127,67549.0,67548.0,2.92716932]
[1717325114985,0.239127,67549.0,67548.0,2.81618832]
[1717325116526,0.239127,67549.0,67548.0,2.92716932]
[1717325118793,0.239127,67549.0,67548.0,2.81618832]
[1717325119135,0.239127,67549.0,67548.0,2.92720136]
[1717325119274,0.239127,67549.0,67548.0,2.81618832]
[1717325124302,0.160427,67549.0,67548.0,2.81618832]
[1717325128651,0.16444894,67549.0,67548.0,2.81618832]
[1717325130039,0.160427,67549.0,67548.0,2.81618832]
[1717325134144,0.009427,67549.0,67548.0,2.81618832]
[1717325138685,0.009427,67549.0,67548.0,2.89438832]
[1717325139700,0.01344894,67549.0,67548.0,2.81618832]
[1717325139923,0.25104894,67549.0,67548.0,2.62002614]
[1717325140128,0.25104894,67549.0,67548.0,2.50899508]
[1717325140336,0.25104894,67549.0,67548.0,2.59782552]
[1717325140554,0.25104894,67549.0,67548.0,2.2606927]
[1717325141021,0.25104894,67549.0,67548.0,2.0237707]
[1717325141244,0.33671894,67549.0,67548.0,1.69262474]
[1717325141448,0.33671894,67549.0,67548.0,1.57139237]
[1717325141817,0.33671894,67549.0,67548.0,1.60839237]
[1717325142250,0.33671894,67549.0,67548.0,1.57139237]
[1717325142462,0.33671894,67549.0,67548.0,1.11261446]
[1717325142890,0.33671894,67549.0,67548.0,1.07561446]
[1717325143103,0.33671894,67549.0,67548.0,0.884975]
[1717325143313,0.33671894,67549.0,67548.0,0.921975]
[1717325143735,0.33671894,67549.0,67548.0,0.884975]
[1717325143943,0.33671894,67549.0,67548.0,0.917975]
[1717325144805,0.33671894,67549.0,67548.0,0.884975]
[1717325145015,0.33671894,67549.0,67548.0,0.921975]
[1717325145432,0.33671894,67549.0,67548.0,0.884975]
[1717325145932,0.48475894,67549.0,67548.0,0.898975]
[1717325146318,0.48475894,67549.0,67548.0,0.899975]
[1717325146520,0.48475894,67549.0,67548.0,0.884975]
[1717325146729,0.48475894,67549.0,67548.0,0.895975]
[1717325147551,0.48475894,67549.0,67548.0,0.907975]
[1717325147755,0.48475894,67549.0,67548.0,0.895975]
[1717325147967,0.48475894,67549.0,67548.0,0.884975]
[1717325148144,0.48475894,67549.0,67548.0,0.889975]
[1717325148355,0.48475894,67549.0,67548.0,0.893975]
[1717325148825,0.48475894,67549.0,67548.0,0.889975]
[1717325149236,0.48475894,67549.0,67548.0,0.893975]
[1717325149614,0.48475894,67549.0,67548.0,0.888975]
[1717325149855,0.48475894,67549.0,67548.0,0.893975]
[1717325160410,0.33671894,67549.0,67548.0,0.893975]
[1717325161258,0.33671894,67549.0,67548.0,0.889975]
[1717325161478,0.33671894,67549.0,67548.0,0.893975]
[1717325161940,0.33671894,67549.0,67548.0,0.888975]
[1717325163324,0.33671894,67549.0,67548.0,0.893975]
[1717325167495,0.33671894,67549.0,67548.0,1.28005291]
[1717325167496,0.009427,67549.0,67548.0,1.28005291]
[1717325167693,0.01344894,67549.0,67548.0,1.28005291]
[1717325167920,0.009427,67549.0,67548.0,1.28005291]
[1717325168120,0.009427,67549.0,67548.0,1.43366748]
[1717325168528,0.009427,67549.0,67548.0,1.42966748]
[1717325168743,0.009427,67549.0,67548.0,1.45766748]
[1717325169466,0.009427,67549.0,67548.0,1.42466748]
[1717325169467,0.01344894,67549.0,67548.0,1.42466748]
[1717325169673,0.01344894,67549.0,67548.0,1.46166748]
[1717325170194,0.01344894,67549.0,67548.0,1.42466748]
[1717325170366,0.009427,67549.0,67548.0,1.42466748]
[1717325170524,0.009427,67549.0,67548.0,1.45266748]
[1717325170921,0.009427,67549.0,67548.0,1.48066748]
[1717325171359,0.009427,67549.0,67548.0,1.45266748]
[1717325171800,0.009427,67549.0,67548.0,1.42466748]
[1717325172189,0.009427,67549.0,67548.0,1.46166748]
[1717325172651,0.009427,67549.0,67548.0,1.49866748]
[1717325176886,0.009427,67549.0,67548.0,1.46166748]
[1717325177088,0.009427,67549.0,67548.0,1.49466748]
[1717325177536,0.009427,67549.0,67548.0,1.45766748]
[1717325177942,0.009427,67549.0,67548.0,1.49266748]
[1717325178399,0.009427,67549.0,67548.0,1.45966748]
[1717325178806,0.009427,67549.0,67548.0,1.49666748]
[1717325178984,0.009427,67549.0,67548.0,1.46166748]
[1717325179356,0.009427,67549.0,67548.0,1.45966748]
[1717325180076,0.009427,67549.0,67548.0,1.49266748]
[1717325184658,0.01344894,67549.0,67548.0,1.33486748]
[1717325193337,0.01344894,67549.0,67548.0,1.33486331]
[1717325195107,0.009427,67549.0,67548.0,1.33486331]
[1717325195398,0.01344894,67549.0,67548.0,1.33486331]
[1717325195568,0.009427,67549.0,67548.0,1.33486331]
[1717325195915,0.01344894,67549.0,67548.0,1.33486331]
[1717325196542,0.009427,67549.0,67548.0,1.33486331]
[1717325200702,0.01344894,67549.0,67548.0,1.33486331]
[1717325202234,0.009427,67549.0,67548.0,1.33486331]
[1717325203591,0.01344894,67549.0,67548.0,1.33486331]
[1717325204051,0.009427,67549.0,67548.0,1.33486331]
[1717325207779,0.01344894,67549.0,67548.0,1.33486331]
[1717325208309,0.009427,67549.0,67548.0,1.33486331]
[1717325208645,0.01344894,67549.0,67548.0,1.33486331]
[1717325209489,0.009427,67549.0,67548.0,1.33486331]
[1717325209739,0.01344894,67549.0,67548.0,1.33486331]
[1717325210797,0.009427,67549.0,67548.0,1.33486331]
[1717325211205,0.009427,67549.0,67548.0,1.37923066]
[1717325212369,0.01344894,67549.0,67548.0,1.33486331]
[1717325212786,0.01344894,67549.0,67548.0,1.25236331]
[1717325212995,0.24534894,67549.0,67548.0,1.25236331]
[1717325213348,0.24534894,67549.0,67548.0,1.29678572]
[1717325214957,0.24534894,67549.0,67548.0,1.25236331]
[1717325229552,0.009427,67549.0,67548.0,1.25236331]
[1717325229779,0.01344894,67549.0,67548.0,1.25236331]
[1717325232102,0.01344894,67549.0,67548.0,1.33336331]
[1717325232815,0.01344894,67549.0,67548.0,1.48916331]
[1717325239954,0.01344894,67549.0,67548.0,1.33336331]
[1717325243459,0.01344894,67549.0,67548.0,1.25236331]
[1717325245208,0.08944894,67549.0,67548.0,1.25236331]
[1717325246429,0.08944894,67549.0,67548.0,1.25237419]
[1717325248389,0.24254894,67549.0,67548.0,1.25237419]
[1717325249276,0.32821894,67549.0,67548.0,1.25237419]
[1717325249493,0.32821894,67549.0,67548.0,1.10659628]
[1717325250090,0.32821894,67549.0,67548.0,1.07359628]
[1717325250504,0.47625894,67549.0,67548.0,0.762975]
[1717325250742,0.47625894,67549.0,67548.0,0.727975]
[1717325250953,0.47625894,67549.0,67548.0,0.763975]
[1717325251293,0.47625894,67549.0,67548.0,0.727975]
[1717325251542,0.47625894,67549.0,67548.0,0.694975]